[Event "SVK ECo-C Extraliga 2021-22"]
[Site "Slovakia"]
[Date "2022.05.08"]
[Round "8.2"]
[White "Kostolansky, Sebastian Lukas"]
[Black "Neugebauer, Martin"]
[Result "1/2-1/2"]
[ECO "B51"]
[WhiteElo "2395"]
[BlackElo "2502"]
[Annotator "TA"]
[PlyCount "116"]
[EventDate "2021.10.21"]
[EventType "team-tourn"]
[EventCountry "SVK"]
[SourceTitle "playchess.com"]
[Source "ChessBase"]
[SourceQuality "1"]
[TimeControl "40/5400+30:1800+30"]

{[%evp 9,116,11,19,16,18,16,12,11,4,0,4,0,0,1,0,11,7,0,0,0,32,29,31,-22,-19,-23,-33,-62,-54,-64,35,21,58,0,0,0,0,0,0,-9,-20,-22,-21,-25,-30,-71,0,-29,-4,-86,-87,-81,-86,-85,-78,-78,-77,-91,-74,-74,-44,-74,-74,-74,-67,-67,-39,-66,-35,-50,-42,-58,-29,-81,-81,-81,-74,-81,-81,-81,-81,-81,-81,-81,-81,-81,-81,-81,-81,-81,-74,-74,-74,-94,-94,-156,-94,-156,-156,-156,-94,-94,-94,-94,-81,-81,0,-98,0]} 1. e4 {[%emt 0:00:04]} c5 {[%emt 0:00:24]} 2. Nf3 {[%emt 0:00:05]} d6 {[%emt 0:00:25]} 3. Bb5+ {[%emt 0:00:34]} Nd7 {[%emt 0:00:28]} 4. O-O {[%emt 0:04:39]} a6 {[%emt 0:01:02]} 5. Bd3 {[%emt 0:00:56]} Ngf6 {[%emt 0:00:55]} 6. Re1 {[%emt 0:04:37] B51: Sicilian: Moscow Variation (3 Bb5+) without 3...Bd7.} e6 {[%emt 0:04:10] 6...e6 is better than 6...b5.} 7. c3 {[%emt 0:00:26]} b5 {[%emt 0:00:34]} 8. Bc2 {[%emt 0:00:29] The position is equal.} c4 {[%emt 0:04:34]} 9. d4 {[%emt 0:01:09]} cxd3 $1 {[%emt 0:00:34]} 10. Qxd3 {[%emt 0:00:06]} Bb7 {[%emt 0:01:32]} 11. a4 {[%emt 0:00:19]} Nc5 {[%emt 0:01:25][%csl LRd3,LRe4]} 12. Qe2 {[%emt 0:00:06]} bxa4 {[%emt 0:01:55]} 13. Be3 {[%emt 0:14:35]} (13. e5 {is interesting.} dxe5 14. Nxe5 Qd5 15. f3) 13... Nfxe4 {[%emt 0:12:30]} 14. Nbd2 {[%emt 0:03:56]} Nxd2 {[%emt 0:03:04]} 15. Nxd2 {[%emt 0:00:33] [#]} Nd7 $146 {[%emt 0:06:02]} ({Predecessor:} 15... Rc8 16. Bxc5 Rxc5 17. Bxa4+ Ke7 18. Nb3 Rg5 19. g3 g6 20. Qc4 Bg7 21. Rad1 Qb6 {0-1 (45) Amin,B (2704)-So,W (2754) Abidjan 2019}) 16. Bxa4 {[%emt 0:20:47]} (16. Bd4 $14) 16... Be7 $11 {[%emt 0:01:48]} 17. Nc4 {[%emt 0:00:38] aiming for Nb6.} O-O {[%emt 0:00:27]} 18. Red1 {[%emt 0:01:18]} Qc7 {[%emt 0:09:04]} 19. Bf4 {[%emt 0:02:23][%cal Rc4d6]} e5 {[%emt 0:08:02] [#]} (19... Nb6 $15 20. Nxb6 (20. Nxd6 $2 Nxa4 21. Nxb7 Qxf4 $19) (20. Bxd6 Bxd6 21. Nxd6 Bd5 $17) 20... Qxb6) 20. Nxe5 $1 $14 {[%emt 0:07:20]} Nc5 {[%emt 0:03:29] [#]} (20... Nb6 21. Nf3) 21. Nf3 {[%emt 0:10:44]} (21. Nc6 $1 $14 Rae8 (21... Rfe8 22. Nxe7+) 22. Qc4 $1 Nxa4 23. Nxe7+ Qxe7 24. Qxa4 (24. Rxa4 Qd7 $11)) 21... Nxa4 $11 {[%emt 0:01:39]} 22. Rxa4 {[%emt 0:00:04]} Rfe8 {[%emt 0:00:31]} 23. Qd3 {[%emt 0:03:57]} a5 {[%emt 0:02:53]} 24. h3 {[%emt 0:05:22][%cal Rf4d6]} ({Don't blunder} 24. Bxd6 $2 Bxd6 25. Rd4 (25. Qxd6 $2 Rad8 $19) 25... Bxf3 26. Qxf3 Bxh2+ 27. Kh1 Be5 $19) 24... Bc6 {[%emt 0:02:05] A strong pair of Bishops.} 25. Rd4 {[%emt 0:03:17][%cal Rf4d6]} Qb7 {[%emt 0:01:17]} 26. Rd2 {[%emt 0:09:08]} h6 {[%emt 0:09:10]} 27. Kh2 {[%emt 0:03:21]} Rad8 {[%emt 0:01:57]} ({Black should try} 27... Bf6 $1 $17 {Hoping for ...Bxf3.} 28. Rxd6 Be7) 28. Bxd6 {[%emt 0:02:15]} (28. Bg3 {feels hotter.} Bf6 29. Rxd6 Rxd6 30. Qxd6 Bxf3 31. gxf3 Rd8 32. Qf4) 28... Be4 {[%emt 0:11:53]} 29. Rxe4 {[%emt 0:01:19]} (29. Qe3 $1 $11 {keeps the balance.}) 29... Bxd6+ $17 {[%emt 0:00:36]} 30. Qxd6 {[%emt 0:00:07]} Qxe4 {[%emt 0:00:12]} 31. Qxd8 {[%emt 0:00:08]} Rxd8 {[%emt 0:00:09]} 32. Rxd8+ $11 {[%emt 0:00:05][%mdl 4096] Endgame KQ-KRN} Kh7 {[%emt 0:00:03] ...Qf4+ is the strong threat.} 33. Rd4 {[%emt 0:01:07]} Qb7 {[%emt 0:00:32][%mdl 1024] Black has strong compensation.} 34. Rd2 {[%emt 0:00:34]} g5 {[%emt 0:00:28]} 35. Nd4 {[%emt 0:00:58]} Qe4 {[%emt 0:00:23] Threatens to win with ...Qf4+.} 36. Re2 {[%emt 0:00:25]} Qf4+ {[%emt 0:01:35]} 37. g3 {[%emt 0:00:09]} Qd6 {[%emt 0:00:06]} 38. Kg2 {[%emt 0:00:38]} f5 {[%emt 0:00:13][%cal Bf7f5,Bf5f4][%mdl 32]} 39. Kg1 {[%emt 0:00:30]} f4 {[%emt 0:01:19]} 40. g4 {[%emt 0:00:28]} Qd5 {[%emt 0:01:15]} 41. f3 {[%emt 0:05:27]} (41. Re7+ $11 {remains equal.} Kg8 42. Re8+ Kf7 43. Rb8) 41... Qa2 $17 {[%emt 0:00:21]} 42. Kg2 {[%emt 0:01:42]} Qb1 {[%emt 0:00:26]} 43. Nf5 {[%emt 0:04:13]} Qd1 {[%emt 0:01:13]} 44. Rf2 {[%emt 0:01:09]} a4 {[%emt 0:00:26]} 45. Rf1 {[%emt 0:00:22]} Qd3 {[%emt 0:00:50]} 46. Rf2 {[%emt 0:00:55]} Kg6 {[%emt 0:01:02]} 47. Ne7+ {[%emt 0:00:29]} Kf6 {[%emt 0:00:31]} 48. Ng8+ {[%emt 0:00:28] [#]} Kg7 $1 {[%emt 0:00:16]} 49. Ne7 {[%emt 0:00:04]} Kf7 {[%emt 0:00:08]} 50. Nf5 {[%emt 0:00:07]} h5 $1 {[%emt 0:00:36]} 51. Nd4 {[%emt 0:00:14]} h4 {[%emt 0:01:50][%cal Oa4a3]} 52. Re2 {[%emt 0:01:50]} (52. Nf5 $142) 52... Qd1 {[%emt 0:00:52]} (52... a3 $142 $1 {[%cal Od3e2] Strongly threatening ...Qxe2+!} 53. bxa3 Qxc3) 53. Re5 {[%emt 0:00:48]} (53. Rc2 $142) 53... Qc1 {[%emt 0:01:04]} 54. Re2 {[%emt 0:00:15]} Qb1 {[%emt 0:00:36]} (54... a3 $142 55. bxa3 Qxc3) 55. Ne6 {[%emt 0:00:59] [#]} Qd1 $1 {[%emt 0:01:45]} 56. Nd4 {[%emt 0:00:53]} Kf6 {[%emt 0:00:46]} 57. Re6+ {[%emt 0:00:04]} Kf7 {[%emt 0:00:04][%cal Oa4a3]} 58. Re2 {[%emt 0:00:04]} Kf6 {Weighted Error Value: White=0.15 (very precise) /Black=0.13 (very precise)} ({Better is} 58... Qd3 $17) 1/2-1/2

[Event "SVK ECo-C Extraliga 2021-22"]
[Site "Slovakia"]
[Date "2022.05.08"]
[Round "8.3"]
[White "Leniart, Arkadiusz"]
[Black "Ponizil, Cyril"]
[Result "1/2-1/2"]
[ECO "B47"]
[WhiteElo "2473"]
[BlackElo "2490"]
[Annotator "TA"]
[PlyCount "61"]
[EventDate "2021.10.21"]
[EventType "team-tourn"]
[EventCountry "SVK"]
[SourceTitle "playchess.com"]
[Source "ChessBase"]
[SourceQuality "1"]
[TimeControl "40/5400+30:1800+30"]

{[%evp 24,61,51,54,56,39,49,51,56,59,45,10,10,10,11,6,18,18,49,25,21,14,27,11,9,0,11,0,5,0,0,0,0,0,0,0,0,0,0,0]} 1. e4 {[%emt 0:00:02]} c5 {[%emt 0:00:04]} 2. Nc3 {[%emt 0:00:04]} Nc6 {[%emt 0:00:20]} 3. Nge2 {[%emt 0:00:07]} e6 {[%emt 0:00:12]} 4. d4 {[%emt 0:00:07]} cxd4 {[%emt 0:00:04]} 5. Nxd4 {[%emt 0:00:03]} Qc7 {[%emt 0:00:06]} 6. g3 {[%emt 0:00:38]} Nf6 {[%emt 0:00:29]} 7. Bg2 {[%emt 0:00:26]} a6 {[%emt 0:00:05]} 8. O-O {[%emt 0:00:15]} Nxd4 {[%emt 0:00:07]} 9. Qxd4 {[%emt 0:00:05]} Bc5 {[%emt 0:00:03]} 10. Bf4 {[%emt 0:00:15]} d6 {[%emt 0:00:04]} 11. Qd2 {[%emt 0:00:08]} h6 {[%emt 0:00:15]} 12. Rad1 {[%emt 0:02:11]} e5 {[%emt 0:00:05]} 13. Be3 {[%emt 0:00:04]} Be6 {[%emt 0:00:03] B47: Sicilian: Taimanov: 5 Nc3 Qc7 6 f4, 6 g3 and 6 Be2.} 14. Bxc5 {[%emt 0:02:07]} dxc5 {[%emt 0:00:20]} 15. Nd5 {[%emt 0:00:45]} Bxd5 {[%emt 0:00:04] White is slightly better.} 16. exd5 {[%emt 0:00:06] [#] Threatens to win with d6.} Qd6 {[%emt 0:00:04]} 17. f4 {[%emt 0:04:11] Black must now prevent fxe5.} O-O {[%emt 0:00:34]} 18. fxe5 {[%emt 0:09:12]} Qxe5 {[%emt 0:00:12]} 19. c4 {[%emt 0:00:33] White wants to play d6.} Qd6 {[%emt 0:03:11]} 20. Qf4 {[%emt 0:06:11]} Rad8 {[%emt 0:00:39]} 21. Qxd6 {[%emt 0:09:34]} (21. b4 $5 {[%cal Rf4d6]} Qxf4 22. Rxf4 $14) 21... Rxd6 {[%emt 0:00:01]} 22. Rfe1 {[%emt 0:00:09]} Rfd8 {[%emt 0:08:54] [#]} 23. Re3 $146 {[%emt 0:09:23]} ({Predecessor:} 23. a4 a5 24. Rd3 Re8 25. Rxe8+ Nxe8 26. Rb3 b6 27. Bh3 Kf8 28. Bc8 Rd8 29. Bb7 Nd6 30. Rxb6 Nxc4 31. Ra6 Nxb2 32. Rxa5 c4 33. Rc5 Nxa4 {½-½ (33) Sivokho,S (2494)-Vekshenkov,N (2417) Togliatti 2003}) 23... b6 {[%emt 0:03:37] The position is equal.} 24. Ra3 {[%emt 0:05:31]} a5 {[%emt 0:00:08]} 25. Re3 {[%emt 0:01:40]} Kf8 {[%emt 0:06:38]} 26. a3 {[%emt 0:01:10]} Re8 {[%emt 0:06:10]} 27. Rxe8+ {[%emt 0:00:58]} Nxe8 {[%emt 0:00:04]} 28. Be4 {[%emt 0:02:55]} Rd8 {[%emt 0:05:20]} 29. Bd3 {[%emt 0:02:18]} Nd6 {[%emt 0:00:48]} 30. Kf2 {[%emt 0:02:40]} Ke7 {[%emt 0:02:32]} 31. Ke3 {[%emt 0:03:07] Weighted Error Value: White=0.07 (flawless) /Black=0.04 (flawless)} 1/2-1/2

[Event "SVK ECo-C Extraliga 2021-22"]
[Site "Slovakia"]
[Date "2022.05.08"]
[Round "8.3"]
[White "Smolen, Jan"]
[Black "Berezjuk, Sergej"]
[Result "1/2-1/2"]
[ECO "A09"]
[WhiteElo "2410"]
[BlackElo "2382"]
[Annotator "TA"]
[PlyCount "80"]
[EventDate "2021.10.21"]
[EventType "team-tourn"]
[EventCountry "SVK"]
[SourceTitle "playchess.com"]
[Source "ChessBase"]
[SourceQuality "1"]
[TimeControl "40/5400+30:1800+30"]

{[%evp 9,80,-45,-51,-53,-43,-115,-102,-91,-112,-99,-113,-120,-95,-113,-22,-120,-54,-55,-53,-154,-166,-157,-43,-50,-27,-62,-54,-59,-58,-62,-55,-54,-44,-44,-56,-60,-59,-95,-88,-115,-97,-115,-87,-114,-126,-126,-27,-18,-3,-8,-8,-8,-8,-8,-10,-10,0,0,0,0,0,0,0,0,0,0,0,0,0,0,0,0,0]} 1. Nf3 {[%emt 0:00:05]} d5 {[%emt 0:00:23]} 2. c4 {[%emt 0:00:30]} d4 {[%emt 0:00:06]} 3. b4 {[%emt 0:03:15]} g5 {[%emt 0:01:23][%cal Bg7g5,Bg5g4][%mdl 32]} 4. d3 {[%emt 0:01:55]} g4 {[%emt 0:00:35]} 5. Nfd2 {[%emt 0:03:25]} e5 {[%emt 0:02:20] [#]} 6. b5 $146 {[%emt 0:03:04] A09: Réti Opening: 1 Nf3 d5 2 c4.} ({Predecessor:} 6. g3 Bxb4 7. Bg2 Nc6 8. O-O Be7 9. Nb3 f5 10. e3 dxe3 11. Bxe3 Nf6 12. Nc3 {0-1 (38) Maghsoodloo,P (2698)-Sadhwani,R (2555) Chess.com INT 2021}) 6... a6 {[%emt 0:05:02]} 7. g3 {[%emt 0:00:51]} (7. e4 $15) 7... axb5 $17 {[%emt 0:00:35]} 8. Bg2 {[%emt 0:04:20] Black is better.} b4 {[%emt 0:06:32]} 9. O-O {[%emt 0:00:30]} h5 {[%emt 0:02:58]} 10. Nb3 {[%emt 0:01:42]} Nc6 {[%emt 0:09:51]} 11. e3 {[%emt 0:00:22]} Bg7 {[%emt 0:01:27]} (11... dxe3 $1 $17 12. Bxe3 Nge7) 12. a3 {[%emt 0:02:30]} (12. Bxc6+ $11 bxc6 13. exd4) 12... Nge7 {[%emt 0:05:54]} (12... dxe3 $1 $17 13. Bxe3 Bf5 14. axb4 Rxa1 15. Nxa1 Bxd3) 13. exd4 $1 $15 {[%emt 0:01:06]} Nxd4 {[%emt 0:02:33]} 14. axb4 {[%emt 0:11:57]} ({White should play} 14. Bb2 $15) 14... Rxa1 $17 {[%emt 0:00:32]} 15. Nxa1 {[%emt 0:00:03] [#]} O-O {[%emt 0:03:52]} (15... Bf5 $1 $17 {[%cal Rf5d3] aiming for ...Bxd3!} 16. Be4 Nf3+ 17. Kh1 h4) 16. Nc2 {[%emt 0:06:25]} Nef5 {[%emt 0:05:45]} 17. Nc3 {[%emt 0:06:09]} Nxc2 {[%emt 0:10:37]} 18. Qxc2 {[%emt 0:00:05]} Nd4 {[%emt 0:00:02]} 19. Qd1 {[%emt 0:04:08]} c6 $36 {[%emt 0:00:24][%mdl 2048] Black has some pressure.} 20. Ne4 {[%emt 0:07:03]} f5 {[%emt 0:02:24]} 21. Bg5 {[%emt 0:02:49]} Qc7 {[%emt 0:02:44]} 22. Nc5 {[%emt 0:02:43]} f4 {[%emt 0:03:54] Threatens to win with ...f3.} 23. Be4 {[%emt 0:02:07]} Bf5 {[%emt 0:00:41]} 24. Nb3 {[%emt 0:02:50]} Ne6 {[%emt 0:04:24]} 25. Bh4 {[%emt 0:05:34]} Qf7 {[%emt 0:01:00]} 26. Qe2 {[%emt 0:02:08]} Bxe4 {[%emt 0:01:54]} 27. Qxe4 {[%emt 0:00:34] [#]} fxg3 {[%emt 0:02:21]} ({Better is} 27... Ra8 $1 $17 {Hoping for ...Ra3.} 28. Qe2 Ra4) 28. hxg3 $11 {[%emt 0:00:50]} Bf6 {[%emt 0:01:16] The position is equal.} 29. Nc5 {[%emt 0:06:36]} (29. Bxf6 {is interesting.} Qxf6 30. Nc5 Ng5 31. Qe2) 29... Nxc5 {[%emt 0:06:04]} 30. bxc5 {[%emt 0:00:08]} Bxh4 {[%emt 0:00:12]} 31. gxh4 {[%emt 0:00:04][%mdl 4096] Endgame KQR-KQR} Qf6 {[%emt 0:00:59]} 32. Qe3 {[%emt 0:05:54]} Kh7 {[%emt 0:02:40]} (32... Rf7 {is more complex.} 33. Kg2 g3 34. Kg1 Qf5) 33. Qg3 {[%emt 0:03:15]} Qf4 {[%emt 0:06:44]} 34. Qxf4 {[%emt 0:03:10]} Rxf4 {[%emt 0:00:43] KR-KR} 35. Re1 {[%emt 0:02:42]} Rf5 {[%emt 0:00:23]} 36. Rb1 {[%emt 0:00:06]} Rf7 {[%emt 0:00:27]} 37. Re1 {[%emt 0:00:30]} Rf5 {[%emt 0:00:39]} 38. Rb1 {[%emt 0:00:24]} Rf7 {[%emt 0:00:24]} 39. Re1 {[%emt 0:00:05]} Rf5 {[%emt 0:01:20]} 40. Rb1 {[%emt 0:00:07]} Rf7 {[%emt 0:00:16] Weighted Error Value: White=0.16 (very precise) /Black=0.17 (very precise)} 1/2-1/2

[Event "SVK ECo-C Extraliga 2021-22"]
[Site "Slovakia"]
[Date "2022.05.09"]
[Round "8.3"]
[White "Straubinger, Daniel"]
[Black "Balogh, Csaba"]
[Result "0-1"]
[ECO "C47"]
[WhiteElo "2352"]
[BlackElo "2586"]
[Annotator "TA"]
[PlyCount "60"]
[EventDate "2021.10.21"]
[EventType "team-tourn"]
[EventCountry "SVK"]
[SourceTitle "playchess.com"]
[Source "ChessBase"]
[SourceQuality "1"]
[TimeControl "40/5400+30:1800+30"]

{[%evp 12,60,31,0,7,0,0,0,0,0,0,0,0,0,0,-15,0,-52,6,-110,-108,-114,-114,-106,-115,-118,-113,-116,-72,-88,-69,-102,-102,-120,-126,-120,-122,-212,-221,-212,-218,-206,-219,-1084,-1058,-29983,-524,-29992,-29993,-29993,-29994]} 1. e4 {[%emt 0:00:16]} e5 {[%emt 0:01:55]} 2. Nf3 {[%emt 0:01:09]} Nc6 {[%emt 0:00:42]} 3. Nc3 {[%emt 0:01:04]} Nf6 {[%emt 0:00:14]} 4. d4 {[%emt 0:01:24]} exd4 {[%emt 0:00:42]} 5. Nxd4 {[%emt 0:00:20]} Bc5 {[%emt 0:15:21]} 6. Be3 {[%emt 0:01:40]} Bb6 {[%emt 0:00:34]} 7. Nxc6 {[%emt 0:06:47] 7.Qd2 is more fashionable.} bxc6 {[%emt 0:03:11] C47: Scotch Four Knights and Four Knights with 4 g3.} 8. Qd2 {[%emt 0:00:27]} O-O {[%emt 0:01:04]} 9. f3 {[%emt 0:00:39]} d5 {[%emt 0:09:04] Strongly threatening ...Bxe3. The position is equal.} 10. O-O-O $1 {[%emt 0:03:08]} Be6 {[%emt 0:00:22]} 11. Qe1 {[%emt 0:32:42] [#]} Nd7 $146 {[%emt 0:31:23]} ({Predecessor:} 11... h6 12. g4 Nd7 13. h4 Re8 14. g5 h5 15. Bf4 Ba5 16. Be2 Nb6 17. a3 c5 18. exd5 Bxd5 {1-0 (29) Herzog,K (2048)-Elwood,D (1908) ICCF email 2019}) 12. Kb1 {[%emt 0:05:43][%cal Re4d5]} Re8 {[%emt 0:01:21]} 13. h4 {[%emt 0:02:46]} (13. exd5 $2 Bxd5 14. Rd3 Ne5 $17) 13... Rb8 {[%emt 0:00:31]} 14. Ka1 {[%emt 0:06:43]} ({Better is} 14. b3 $11) 14... Qe7 {[%emt 0:02:00]} (14... Ba5 $15) 15. Na4 {[%emt 0:07:28]} (15. Bc1 $11) 15... dxe4 $1 $17 {[%emt 0:02:16]} 16. Bg5 {[%emt 0:02:35]} f6 {[%emt 0:02:42]} 17. Bc1 {[%emt 0:06:35]} exf3 {[%emt 0:03:23]} 18. gxf3 {[%emt 0:00:27]} Bd5 {[%emt 0:02:30]} 19. Qg3 {[%emt 0:02:12]} Ne5 {[%emt 0:00:16]} 20. Be2 {[%emt 0:01:03]} Ng6 {[%emt 0:07:45]} 21. Bd3 {[%emt 0:01:05]} Qd6 {[%emt 0:00:20]} 22. Qh3 {[%emt 0:02:00]} Be3 {[%emt 0:05:33] Threatens to win with ...Bxc1. Black is much more active.} 23. Bxg6 {[%emt 0:02:04]} hxg6 {[%emt 0:00:14][%cal Bh7g6,Bg6g5][%mdl 32]} 24. h5 {[%emt 0:03:27]} (24. Bxe3 $17 Rxe3 25. c4) 24... Bxc1 $19 {[%emt 0:00:35]} ({And not} 24... g5 25. h6 Qe6 26. hxg7 Qxh3 27. Rxh3 Kxg7 28. b3) 25. Rxc1 {[%emt 0:00:18]} g5 {[%emt 0:01:23] White must now prevent ...Rb4.} 26. h6 {[%emt 0:00:13] Hoping for hxg7.} g6 {[%emt 0:00:13] ...Rb4 is the strong threat.} 27. Nc3 $2 {[%emt 0:03:17] [#]} (27. Rhd1) 27... Rxb2 $3 {[%emt 0:01:27][%mdl 512] ( -> ...Qa3)} 28. Rhe1 {[%emt 0:02:46]} (28. Rb1 Rxc2) 28... Rbb8 {[%emt 0:01:47]} (28... Reb8 $142 29. h7+ Kh8 30. Qd7 Qxd7 31. Rb1 Rxb1+ 32. Rxb1 Rxb1+ 33. Kxb1 Bxf3 34. Kb2 g4 35. Nb1 g3 36. Kc3 g2 37. Nd2 {[#]} g1=Q $1 38. Nb3 Qb1 39. Nd4 c5 $1 40. Nb3 Qd4+ $3 {[%mdl 512]} 41. Nxd4 Qb4+ 42. Kd3 Qxd4#) 29. Qg4 {[%emt 0:01:01]} Rxe1 {[%emt 0:02:17]} 30. Rxe1 {[%emt 0:00:20]} Qa3 {[%emt 0:00:14] Weighted Error Value: White=0.96/Black=0.30} 0-1

[Event "SVK ECo-C Extraliga 2021-22"]
[Site "Slovakia"]
[Date "2022.05.09"]
[Round "8.3"]
[White "Krak, Tomas"]
[Black "Bokros Albert"]
[Result "0-1"]
[ECO "B80"]
[WhiteElo "2332"]
[BlackElo "2457"]
[Annotator "TA"]
[PlyCount "60"]
[EventDate "2021.10.21"]
[EventType "team-tourn"]
[EventCountry "SVK"]
[SourceTitle "playchess.com"]
[Source "ChessBase"]
[SourceQuality "1"]
[TimeControl "40/5400+30:1800+30"]

{[%evp 13,60,13,22,18,83,81,91,79,87,81,80,88,73,95,94,47,51,60,51,58,135,96,108,27,34,47,43,0,58,50,28,-14,-27,-63,-46,-37,-46,-89,-90,-299,114,-734,-701,-721,-695,-675,-711,-687,-679]} 1. e4 {[%emt 0:00:16]} c5 {[%emt 0:00:11]} 2. Nf3 {[%emt 0:01:05]} e6 {[%emt 0:00:08]} 3. Nc3 {[%emt 0:00:30]} a6 {[%emt 0:00:44]} 4. d4 {[%emt 0:00:14]} cxd4 {[%emt 0:00:06]} 5. Nxd4 {[%emt 0:00:07]} d6 {[%emt 0:00:49]} 6. Be3 {[%emt 0:01:59]} Nf6 {[%emt 0:03:23]} 7. Qf3 {[%emt 0:03:02] 7.Be2 is becoming the main line.} Nbd7 {[%emt 0:02:02]} 8. Be2 {[%emt 0:01:30] B80: Sicilian Scheveningen: 6 g3 and 6 Be3, including English Attack.} Be7 {[%emt 0:07:46]} (8... Qc7 $11 {remains equal.}) 9. g4 $16 {[%emt 0:07:18][%cal Bg2g4,Bg4g5][%mdl 32]} Ne5 {[%emt 0:02:38]} 10. Qg2 {[%emt 0:04:16] White is better.} Qc7 {[%emt 0:03:38][%cal Od6d5]} 11. g5 {[%emt 0:09:59]} Nfd7 {[%emt 0:00:12]} 12. f4 {[%emt 0:00:44]} Nc4 {[%emt 0:02:01]} 13. Bxc4 {[%emt 0:00:10]} Qxc4 {[%emt 0:00:06]} 14. O-O-O $1 {[%emt 0:00:48]} b5 $1 {[%emt 0:03:46] [#]} 15. Kb1 $146 {[%emt 0:02:38]} ({Predecessor:} 15. e5 d5 16. g6 hxg6 17. Nxe6 fxe6 18. Qxg6+ Kd8 19. f5 b4 20. Nxd5 exd5 21. Qxg7 {0-1 (40) Hanley,C (2452)-Antova,G (2263) Caleta 2019}) 15... Bb7 {[%emt 0:04:17][%cal Bc8b7,Bb7c6,Bc6b5][%mdl 32]} 16. f5 {[%emt 0:07:06]} b4 {[%emt 0:10:10]} (16... g6 $14) 17. Na4 {[%emt 0:15:29][%cal Bc3a4,Ba4b2,Bb2c4,Bc4b6][%mdl 32] Black must now prevent fxe6.} e5 {[%emt 0:13:47] [#]} 18. b3 {[%emt 0:00:32]} (18. f6 $1 $16 exd4 19. Rxd4) 18... Qc7 $11 {[%emt 0:00:52]} 19. Ne2 {[%emt 0:00:38] Pair of Knights!} Bc6 {[%emt 0:05:49]} 20. Nb2 {[%emt 0:02:05]} a5 {[%emt 0:06:00]} ({Better is} 20... h6 $11) 21. Ng3 {[%emt 0:08:54][%cal Of5f6] Hoping for f6!} a4 {[%emt 0:01:46]} 22. f6 {[%emt 0:18:19]} gxf6 {[%emt 0:02:27]} 23. Nc4 {[%emt 0:07:42] Threatens to win with Nf5.} Bb5 $1 {[%emt 0:03:59]} (23... fxg5 24. Nf5 axb3 25. Ncxd6+ (25. axb3 Rg8 $16) 25... Kf8 26. cxb3 Bxd6 27. Nxd6 $18) (23... axb3 24. cxb3 Rg8 25. Rhf1 $11) 24. gxf6 {[%emt 0:00:10]} Nxf6 {[%emt 0:03:11]} 25. Nb6 {[%emt 0:00:28]} Ra6 {[%emt 0:03:17]} 26. Nf5 $2 {[%emt 0:05:10]} (26. Nd5 $17 {might work better.} Nxd5 27. Rxd5) 26... Rg8 $2 {[%emt 0:06:28]} ({Don't blunder} 26... Rxb6 $2 27. Bxb6 Qxb6 28. Qf3 $19) (26... axb3 $19 27. cxb3 Qc3) 27. Ng7+ $2 {[%emt 0:00:09][%mdl 8192] [#]} (27. Nd5 $16 Rxg2 28. Nxc7+ Kd7 29. Nxb5) 27... Rxg7 $1 $19 {[%emt 0:08:09][%mdl 512] Black is clearly winning.} 28. Qxg7 {[%emt 0:00:06]} axb3 {[%emt 0:00:46]} 29. Qh8+ {[%emt 0:00:24]} Bf8 {[%emt 0:00:09]} 30. cxb3 {[%emt 0:00:25]} Nxe4 {[%emt 0:00:51] Weighted Error Value: White=0.50/Black=0.37} 0-1

[Event "SVK ECo-C Extraliga 2021-22"]
[Site "Slovakia"]
[Date "2022.05.08"]
[Round "8.3"]
[White "Haring, Viktor"]
[Black "Jurcik, Martin"]
[Result "1/2-1/2"]
[ECO "C07"]
[WhiteElo "2259"]
[BlackElo "2393"]
[Annotator "TA"]
[PlyCount "51"]
[EventDate "2021.10.21"]
[EventType "team-tourn"]
[EventCountry "SVK"]
[SourceTitle "playchess.com"]
[Source "ChessBase"]
[SourceQuality "1"]
[TimeControl "40/5400+30:1800+30"]

{[%evp 10,51,19,30,27,24,26,25,20,2,22,25,18,-8,-12,-1,10,-15,13,0,-2,-15,-14,-62,-64,-57,-46,-39,-23,-37,-8,-13,22,22,41,36,98,84,82,89,85,87,91,4]} 1. e4 {[%emt 0:00:05]} e6 {[%emt 0:00:28]} 2. d4 {[%emt 0:00:40]} d5 {[%emt 0:00:12]} 3. Nd2 {[%emt 0:00:43]} c5 {[%emt 0:00:46]} 4. exd5 {[%emt 0:02:27]} Qxd5 {[%emt 0:00:49]} 5. Ngf3 {[%emt 0:00:36]} cxd4 {[%emt 0:00:43]} 6. Bc4 {[%emt 0:00:26]} Qd7 {[%emt 0:01:11] C07: French Tarrasch: 3...c5, 4 Ngf3 and 4 exd5 Qxd5.} 7. O-O {[%emt 0:01:40]} Nc6 {[%emt 0:01:21]} 8. Nb3 {[%emt 0:01:43][%cal Rb3d4]} a6 {[%emt 0:01:32] White has an edge.} 9. Nfxd4 {[%emt 0:16:39]} Nxd4 {[%emt 0:01:17]} 10. Nxd4 {[%emt 0:06:56]} Qc7 {[%emt 0:01:04]} 11. Qe2 {[%emt 0:02:44]} Bd6 {[%emt 0:01:53]} 12. Nf3 {[%emt 0:13:33]} Ne7 {[%emt 0:04:48]} 13. Re1 {[%emt 0:03:25]} Ng6 {[%emt 0:04:08] [#]} 14. Bb3 $146 {[%emt 0:09:10]} ({Predecessor:} 14. Bd2 Bd7 15. Rad1 O-O 16. Bd3 Bc6 17. Bxg6 hxg6 18. h3 Rad8 19. Bc3 Bd5 20. Ng5 {0-1 (66) Promyshlyanskiy,V (2303)-Spiess,G (2435) Germany 2018}) 14... O-O {[%emt 0:04:13]} 15. h4 {[%emt 0:10:28]} b6 {[%emt 0:17:22]} 16. Ng5 {[%emt 0:08:14]} (16. c3 $11) 16... h6 $1 $15 {[%emt 0:06:03]} 17. Ne4 {[%emt 0:02:41]} Bh2+ {[%emt 0:05:02]} (17... Nxh4 $2 18. Nxd6 Qxd6 19. Qe4 $16) 18. Kh1 {[%emt 0:00:34]} Bf4 {[%emt 0:00:18]} ({Don't play} 18... Nxh4 19. Qh5 Nxg2 20. Kxg2 $16) 19. Qg4 {[%emt 0:05:49]} Bxc1 {[%emt 0:06:51]} 20. Raxc1 {[%emt 0:00:10]} Kh8 {[%emt 0:00:17]} (20... a5 {seems wilder.} 21. a4 Bb7 22. Bxe6 Ne5) 21. Rcd1 {[%emt 0:01:57]} e5 {[%emt 0:10:07]} 22. Qg3 {[%emt 0:00:18] aiming for Nd6.} Qe7 {[%emt 0:00:22]} ({Black should play} 22... Bf5 $14) 23. Nd6 $16 {[%emt 0:02:28] h5 is the strong threat. White is better.} Be6 {[%emt 0:10:25] [#]} 24. h5 $1 {[%emt 0:02:15] White is much more active.} Nf4 {[%emt 0:00:42]} 25. Rxe5 {[%emt 0:01:13]} Qf6 {[%emt 0:00:03] [#]} 26. Bxe6 {[%emt 0:01:53] Weighted Error Value: White=0.08 (flawless) /Black=0.10 (very precise)} 1/2-1/2